fUSD/lending_fUSD_20251103
["ID","MTS","AMOUNT","RATE_DAILY","PERIOD"]
[392932227,1762154691079,-500.0,0.00031506,120]
[392932228,1762154691158,-500.0,0.00031506,120]
[392932229,1762154691235,-500.0,0.00031506,120]
[392932230,1762154691317,-500.0,0.00031506,120]
[392932231,1762154691398,-781.55,0.00031506,120]
[392932232,1762154691475,-500.0,0.00031506,120]
[392932233,1762154691554,-828.91,0.00031506,120]
[392932234,1762154691633,-500.14420497,0.00031506,120]
[392932235,1762154691711,-515.54,0.00031506,120]
[392932236,1762154691792,-513.04,0.00031506,120]
[392932237,1762154691873,-500.0,0.00031506,120]
[392932238,1762154691953,-500.0,0.00031506,120]
[392932239,1762154692039,-500.0,0.00031506,120]
[392932240,1762154692123,-500.0,0.00031506,120]
[392932241,1762154692208,-500.0,0.00031506,120]
[392932242,1762154692295,-500.0,0.00031506,120]
[392932243,1762154692382,-500.0,0.00031506,120]
[392932244,1762154692475,-500.0,0.00031506,120]
[392932245,1762154692812,-550.61,0.00031506,120]
[392932246,1762154692898,-617.9,0.00031506,120]
[392932247,1762154692978,-500.0,0.00031506,120]
[392932248,1762154693057,-500.0,0.00031506,120]
[392932249,1762154693138,-500.0,0.00031506,120]
[392932250,1762154693235,-500.0,0.00031506,120]
[392932251,1762154693315,-500.0,0.00031506,120]
[392932252,1762154693396,-500.0,0.00031506,120]
[392932253,1762154693475,-505.87,0.00031506,120]
[392932254,1762154693553,-786.06,0.00031506,30]
[392932255,1762154693631,-650.3,0.00031506,120]
[392932256,1762154693707,-571.89089893,0.00031506,120]
[392932257,1762154693784,-500.0,0.00031506,120]
[392932258,1762154693860,-500.0,0.00031506,120]
[392932259,1762154693935,-500.0,0.00031506,120]
[392932260,1762154694005,-500.0,0.00031506,120]
[392932261,1762154694076,-500.0,0.00031506,120]
[392932262,1762154694143,-500.0,0.00031506,120]
[392932263,1762154694216,-655.08,0.00031506,120]
[392932264,1762154694283,-500.0,0.00031506,120]
[392932265,1762154694350,-513.53,0.00031506,120]
[392932266,1762154694422,-550.44,0.00031506,120]
[392932267,1762154694491,-647.3011828,0.00031506,120]
[392932268,1762154694557,-500.0,0.00031506,120]
[392932269,1762154694624,-500.0,0.00031506,120]
[392932270,1762154694688,-500.0,0.00031506,120]
[392932271,1762154694754,-500.0,0.00031506,120]
[392932272,1762154694819,-500.0,0.00031506,120]
[392932273,1762154694889,-500.0,0.00031506,120]
[392932274,1762154694957,-598.39,0.00031506,120]
[392932275,1762154695024,-500.0,0.00031506,120]
[392932276,1762154695090,-564.84,0.00031506,120]
[392932277,1762154695158,-300.0,0.00031506,120]
[392932278,1762154695230,-500.0,0.00031506,120]
[392932279,1762154695299,-500.0,0.00031506,60]
[392932280,1762154695373,-967.48,0.00031506,120]
[392932281,1762154695446,-500.0,0.00031506,120]
[392932282,1762154695521,-500.0,0.00031506,120]
[392932283,1762154695591,-500.0,0.00031506,120]
[392932284,1762154695661,-500.0,0.00031506,120]
[392932285,1762154695734,-500.0,0.00031506,120]
[392932286,1762154695807,-500.0,0.00031506,120]
[392932287,1762154695883,-500.0,0.00031506,120]
[392932288,1762154695955,-500.0,0.00031506,120]
[392932289,1762154696026,-500.0,0.00031506,120]
[392932290,1762154696099,-661.97,0.00031506,120]
[392932291,1762154696173,-2165.41,0.00031506,120]
[392932292,1762154696245,-500.0,0.00031506,120]
[392932293,1762154696323,-500.0,0.00031506,120]
[392932294,1762154696398,-500.0,0.00031506,120]
[392932295,1762154696470,-530.69,0.00031506,120]
[392932296,1762154696544,-575.11,0.00031506,120]
[392932297,1762154696617,-846.02,0.00031506,60]
[392932298,1762154696685,-500.0,0.00031506,120]
[392932299,1762154696758,-500.0,0.00031506,120]
[392932300,1762154696829,-532.91,0.00031506,120]
[392932301,1762154696902,-500.0,0.00031506,120]
[392932302,1762154696971,-500.0,0.00031506,120]
[392932303,1762154697039,-592.3,0.00031506,120]
[392932304,1762154697108,-500.0,0.00031506,120]
[392932305,1762154697180,-500.0,0.00031506,120]
[392932306,1762154697255,-500.0,0.00031506,120]
[392932307,1762154697331,-500.0,0.00031506,120]
[392932308,1762154697398,-500.0,0.00031506,120]
[392932309,1762154697462,-500.0,0.00031506,120]
[392932310,1762154697527,-500.0,0.00031506,120]
[392932311,1762154697594,-500.0,0.00031506,120]
[392932312,1762154697654,-500.0,0.00031506,120]
[392932313,1762154697713,-500.0,0.00031506,120]
[392932314,1762154697774,-500.0,0.00031506,120]
[392932315,1762154697835,-500.0,0.00031506,120]
[392932316,1762154697899,-500.0,0.00031506,120]
[392932317,1762154697961,-500.0,0.00031506,120]
[392932318,1762154698023,-410.44314828,0.00031506,120]
[392932319,1762154698090,-500.0,0.00031506,120]
[392932320,1762154698163,-500.0,0.00031506,120]
[392932321,1762154698231,-500.0,0.00031506,120]
[392932322,1762154698298,-500.0,0.00031506,120]
[392932323,1762154698367,-500.0,0.00031506,120]
[392932324,1762154698438,-514.4429588,0.00031506,120]
[392932325,1762154698504,-765.1,0.00031506,120]
[392932326,1762154698565,-500.0,0.00031506,120]
[392932327,1762154698632,-500.0,0.00031506,120]
[392932328,1762154698699,-500.0,0.00031506,120]
[392932329,1762154698766,-500.0,0.00031506,120]
[392932330,1762154698835,-500.0,0.00031506,120]
[392932331,1762154698901,-500.0,0.00031506,120]
[392932332,1762154698966,-500.0,0.00031506,120]
[392932333,1762154699030,-391.39803843,0.00031506,120]
[392932334,1762154699093,-500.0,0.00031506,120]
[392932335,1762154699156,-500.0,0.00031506,120]
[392932336,1762154699218,-777.8,0.00031506,30]
[392932337,1762154699279,-720.27,0.00031506,120]
[392932338,1762154699339,-1185.9,0.00031506,120]
[392932339,1762154699397,-500.0,0.00031506,120]
[392932340,1762154699458,-500.0,0.00031506,120]
[392932341,1762154699517,-500.0,0.00031506,120]
[392932342,1762154699575,-500.0,0.00031506,120]
[392932343,1762154699634,-500.0,0.00031506,120]
[392932344,1762154699696,-500.0,0.00031506,120]
[392932345,1762154699761,-500.0,0.00031506,120]
[392932346,1762154699829,-500.0,0.00031506,120]
[392932347,1762154699894,-500.0,0.00031506,120]
[392932348,1762154700153,-500.0,0.00031506,120]
[392932349,1762154700261,-500.0,0.00031506,120]
[392932350,1762154700339,-500.0,0.00031506,120]
[392932351,1762154700409,-500.0,0.00031506,120]
[392932352,1762154700481,-769.93,0.00031506,120]
[392932353,1762154700552,-500.0,0.00031506,120]
[392932354,1762154700620,-225.4047365,0.00031506,120]
[392932355,1762154700688,-500.0,0.00031506,120]
[392932356,1762154700753,-500.0,0.00031506,120]
[392932357,1762154700816,-500.0,0.00031506,120]
[392932358,1762154700881,-500.0,0.00031506,120]
[392932359,1762154700940,-500.0,0.00031506,120]
[392932360,1762154701002,-500.0,0.00031506,120]
[392932361,1762154701059,-500.0,0.00031506,120]
[392932362,1762154701118,-500.0,0.00031506,120]
[392932363,1762154701182,-628.02,0.00031506,120]
[392932364,1762154701248,-822.27,0.00031506,30]
[392932365,1762154701319,-500.0,0.00031506,120]
[392932366,1762154701393,-599.94,0.00031506,120]
[392932367,1762154701459,-500.0,0.00031506,120]
[392932368,1762154701526,-500.0,0.00031506,120]
[392932369,1762154701592,-500.0,0.00031506,120]
[392932370,1762154701657,-500.0,0.00031506,120]
[392932371,1762154701716,-500.0,0.00031506,120]
[392932372,1762154701775,-500.0,0.00031506,120]
[392932373,1762154701836,-539.76,0.00031506,120]
[392932374,1762154701895,-500.0,0.00031506,120]
[392932375,1762154701961,-500.0,0.00031506,30]
[392932376,1762154702030,-500.0,0.00031506,120]
[392932377,1762154702096,-500.0,0.00031506,120]
[392932378,1762154702163,-985.99,0.00031506,120]
[392932379,1762154702231,-500.0,0.00031506,120]
[392932380,1762154702300,-500.0,0.00031506,120]
[392932381,1762154702374,-327.40869821,0.00031506,120]
[392932382,1762154702450,-500.0,0.00031506,120]
[392932383,1762154702526,-500.0,0.00031506,120]
[392932384,1762154702602,-291.00233932,0.00031506,120]
[392932385,1762154702679,-561.17,0.00031506,120]
[392932386,1762154702751,-698.12,0.00031506,120]
[392932387,1762154702818,-500.0,0.00031506,120]
[392932388,1762154702889,-500.0,0.00031506,120]
[392932389,1762154702948,-500.0,0.00031506,120]
[392932390,1762154703006,-501.94,0.00031506,60]
[392932391,1762154703081,-500.0,0.00031506,120]
[392932392,1762154703162,-500.0,0.00031506,120]
[392932393,1762154703239,-500.0,0.00031506,120]
[392932394,1762154703313,-500.0,0.00031506,120]
[392932395,1762154703393,-500.0,0.00031506,120]
[392932396,1762154703472,-544.92,0.00031506,120]
[392932397,1762154703552,-500.0,0.00031506,120]
[392932398,1762154703631,-500.0,0.00031506,120]
[392932399,1762154703713,-500.0,0.00031506,120]
[392932400,1762154703798,-153.187492,0.00031506,120]
[392932401,1762154703878,-500.0,0.00031506,120]
[392932402,1762154703962,-500.0,0.00031506,120]
[392932403,1762154704044,-500.0,0.00031506,120]
[392932404,1762154704127,-500.0,0.00031506,120]
[392932405,1762154704210,-500.0,0.00031506,120]
[392932406,1762154704293,-500.0,0.00031506,120]
[392932407,1762154704375,-500.0,0.00031506,120]
[392932408,1762154704462,-500.0,0.00031506,120]
[392932409,1762154704548,-500.0,0.00031506,120]
[392932410,1762154704632,-500.0,0.00031506,120]
[392932411,1762154704718,-500.0,0.00031506,120]
[392932412,1762154704804,-500.0,0.00031506,120]
[392932413,1762154704893,-500.0,0.00031506,120]
[392932414,1762154704979,-500.0,0.00031506,120]
[392932415,1762154705066,-500.0,0.00031506,120]
[392932416,1762154705154,-500.0,0.00031506,120]
[392932417,1762154705237,-880.42,0.00031506,120]
[392932418,1762154705319,-500.0,0.00031506,120]
[392932419,1762154705402,-500.0,0.00031506,30]
[392932420,1762154705483,-500.0,0.00031506,120]
[392932421,1762154705560,-500.0,0.00031506,120]
[392932422,1762154705634,-524.81,0.00031506,120]
[392932423,1762154705711,-500.0,0.00031506,120]
[392932424,1762154705788,-500.0,0.00031506,120]
[392932425,1762154705867,-500.0,0.00031506,120]
[392932426,1762154705946,-500.0,0.00031506,120]
[392932427,1762154706024,-500.0,0.00031506,120]
[392932428,1762154706101,-500.0,0.00031506,120]
[392932429,1762154706179,-500.0,0.00031506,120]
[392932430,1762154706257,-500.0,0.00031506,120]
[392932431,1762154706340,-500.0,0.00031506,120]
[392932432,1762154706415,-500.0,0.00031506,120]
[392932433,1762154706489,-500.0,0.00031506,120]
[392932434,1762154706561,-500.0,0.00031506,120]
[392932435,1762154706641,-500.0,0.00031506,120]
[392932436,1762154706720,-500.0,0.00031506,120]
[392932437,1762154706798,-500.0,0.00031506,30]
[392932438,1762154706876,-500.0,0.00031506,120]
[392932439,1762154706953,-500.0,0.00031506,120]
[392932440,1762154707037,-1174.63,0.00031506,60]
[392932441,1762154707129,-500.0,0.00031506,120]
[392932442,1762154707213,-500.0,0.00031506,120]
[392932443,1762154707288,-623.56,0.00031506,120]
[392932444,1762154707364,-500.0,0.00031506,120]
[392932445,1762154707443,-655.87,0.00031506,30]
[392932446,1762154707522,-500.0,0.00031506,120]
[392932447,1762154707618,-500.0,0.00031506,120]
[392932448,1762154707701,-500.0,0.00031506,30]
[392932449,1762154707782,-500.0,0.00031506,120]
[392932450,1762154707863,-500.0,0.00031506,120]
[392932451,1762154707949,-500.0,0.00031506,120]
[392932452,1762154708208,-500.0,0.00031506,120]
[392932453,1762154708290,-495.19423672,0.00031506,120]
[392932454,1762154708372,-500.0,0.00031506,120]
[392932455,1762154708454,-500.0,0.00031506,120]
[392932456,1762154708531,-500.0,0.00031506,120]
[392932457,1762154708607,-500.0,0.00031506,120]
[392932458,1762154708690,-504.6,0.00031506,120]
[392932459,1762154708773,-663.38,0.00031506,120]
[392932460,1762154708858,-500.0,0.00031506,120]
[392932461,1762154708951,-938.82,0.00031506,120]
[392932462,1762154709033,-500.0,0.00031506,120]
[392932463,1762154709117,-500.0,0.00031506,120]
[392932464,1762154709206,-586.29,0.00031506,120]
[392932465,1762154709287,-427.32902816,0.00031506,120]
[392932466,1762154709371,-296.06956977,0.00031506,120]
[392932467,1762154709453,-500.0,0.00031506,120]
[392932468,1762154709536,-548.17,0.00031506,120]
[392932469,1762154709615,-500.0,0.00031506,120]
[392932470,1762154709696,-608.47,0.00031506,120]
[392932471,1762154709775,-500.0,0.00031506,120]
[392932472,1762154709861,-500.0,0.00031506,120]
[392932473,1762154709944,-996964.14333608,0.00031507,60]
[392932474,1762154711816,1600.0,0.0001404,2]
[392932475,1762154714173,6101.12,0.00014007,2]
[392932476,1762154717107,150.0,0.00013488,2]
[392932477,1762154717163,150.0,0.00014237,2]
[392932478,1762154717240,150.0,0.00013488,2]
[392932479,1762154717391,150.0,0.00013488,2]
[392932480,1762154717443,150.0,0.00014237,2]
[392932481,1762154717766,150.0,0.00013488,2]
[392932482,1762154717823,150.0,0.00013488,2]
[392932483,1762154718002,150.0,0.00013488,2]
[392932484,1762154718446,150.0,0.00013488,2]
[392932485,1762154721189,169.67742824,0.00013488,2]
[392932486,1762154722121,189.35451242,0.00014,2]
[392932487,1762154723250,150.0,0.00013488,2]
[392932488,1762154723389,242.69269608,0.00013488,2]
[392932489,1762154724481,150.0,0.00013488,2]
[392932490,1762154724943,47.16536326,0.00013488,2]
[392932491,1762154724971,102.83463674,0.00013488,2]
[392932492,1762154729185,166.66,0.00014356,2]
[392932493,1762154731525,150.0,0.00013488,2]
[392932494,1762154731568,150.0,0.00013987,2]
[392932495,1762154731658,150.0,0.00013488,2]
[392932496,1762154731733,150.0,0.00013987,2]
[392932497,1762154731951,150.0,0.00013488,2]
[392932498,1762154731997,150.0,0.00013987,2]
[392932501,1762154752857,686.86422499,0.0001399,2]
[392932502,1762154752879,15000.0,0.0001399,2]
[392932503,1762154752899,15000.0,0.0001399,2]
[392932504,1762154752920,15000.0,0.0001399,2]
[392932505,1762154752941,1797.89670059,0.0001399,2]
[392932506,1762154755066,166.66,0.00013699,2]
[392932507,1762154755243,166.66,0.0001388,2]
[392932508,1762154755461,166.66,0.00014062,2]
[392932509,1762154755672,166.66,0.00014244,2]
[392932512,1762154779131,150.0,0.00015,120]
[392932513,1762154834255,1243.15,0.00013818,2]
[392932514,1762154835413,900.0,0.00013,2]
[392932515,1762154835669,188.23951181,0.00013,2]
[392932516,1762154835764,-166.66,0.00014425,2]
[392932517,1762154835792,-79.81963111,0.00014441,2]
[392932518,1762154840416,200.0,0.00013827,2]
[392932519,1762154852388,-164.31319096,0.00014441,2]
[392932520,1762154888146,186.59130588,0.000135,2]
[392932522,1762154895338,1914.73213934,0.0001,2]
[392932523,1762154897140,388.14718442,7.888e-05,2]
[392932526,1762154906801,2711.16112354,0.0001,2]
[392932533,1762154916994,3511.13873501,0.0001,2]
[392932534,1762154917017,4774.28243801,0.0001,2]
[392932535,1762154919978,1341.46672242,0.00013699,2]
[392932536,1762154933584,1000.0,0.00013699,2]
[392932538,1762154967141,150.0,0.00015,120]
[392932541,1762154992781,215.82,0.00013804,2]
[392932543,1762155022826,2668.44083957,0.00013796,2]
[392932544,1762155022851,5079.16916043,0.00013796,2]
[392932560,1762155032182,-55.86717793,0.00014441,2]
[392932561,1762155032192,-300.0,0.00014448,2]
[392932562,1762155032201,-195.0,0.00014456,2]
[392932563,1762155032211,-250.0,0.00014456,2]
[392932564,1762155032221,-150.0,0.00014487,2]
[392932565,1762155032230,-150.0,0.00014487,2]
[392932566,1762155032239,-150.0,0.00014487,2]
[392932567,1762155032248,-2945.0,0.00014535,2]
[392932568,1762155032258,-761.01978354,0.0001455,2]
[392932569,1762155032267,-1200.0,0.00014599,2]
[392932570,1762155032276,-56.89901548,0.00014599,2]
[392932571,1762155032290,-243.10098452,0.00014599,2]
[392932572,1762155032299,-300.0,0.00014599,2]
[392932573,1762155032308,-1000.0,0.000146,2]
[392932574,1762155032317,-281.96259086,0.000146,2]
[392932575,1762155032357,-848.94109769,0.000146,2]
[392932622,1762155038037,-1157.04673299,0.000146,2]
[392932623,1762155038047,-166.66,0.00014607,2]
[392932624,1762155038057,-2287.9504215,0.00014633,2]
[392932625,1762155038067,-2287.9504215,0.00014667,2]
[392932626,1762155038077,-500.0,0.00014673,2]
[392932627,1762155038087,-502.71113247,0.00014673,2]
[392932628,1762155038096,-500.0,0.00014673,2]
[392932629,1762155038106,-500.0,0.00014673,2]
[392932630,1762155038115,-500.0,0.00014673,2]
[392932631,1762155038125,-500.0,0.00014673,2]
[392932632,1762155038134,-500.8810386,0.00014673,2]
[392932633,1762155038144,-500.0,0.00014673,2]
[392932634,1762155038153,-502.00398933,0.00014673,2]
[392932635,1762155038163,-322.6107,0.00014691,2]
[392932636,1762155038173,-336.16993572,0.00014691,2]
[392932637,1762155038184,-178.67077297,0.00014691,2]
[392932638,1762155038194,-248.71531821,0.00014691,2]
[392932639,1762155038203,-151.0,0.00014691,2]
[392932640,1762155038212,-519.60983237,0.00014699,2]
[392932641,1762155038222,-150.0,0.00014699,2]
[392932642,1762155038231,-500.0,0.00014699,2]
[392932643,1762155038240,-500.0,0.00014699,2]
[392932644,1762155038249,-394.39152985,0.00014699,2]
[392932645,1762155038259,-506.806,0.000147,2]
[392932646,1762155038267,-56464.70177344,0.000147,2]
[392932647,1762155038279,-15152.49673133,0.000147,2]
[392932650,1762155040241,-254.52879237,0.000147,2]
[392932651,1762155040868,-1.6e-07,0.000147,2]
[392932652,1762155041234,-107095.1175027,0.000147,2]
[392932653,1762155041245,-2287.9504215,0.000147,2]
[392932654,1762155041256,-303.0873,0.000147,2]
[392932655,1762155041266,-15265.7006537,0.000147,2]
[392932656,1762155041276,-1651.0609,0.000147,2]
[392932657,1762155041287,-3406.4449997,0.00014731,2]
[392932658,1762155041298,-2287.9504215,0.00014733,2]
[392932659,1762155041308,-2287.9504215,0.00014767,2]
[392932660,1762155041318,-284.73,0.00014768,2]
[392932661,1762155041330,-60000.0,0.0001478,2]
[392932662,1762155041340,-329.49819991,0.00014796,2]
[392932663,1762155041350,-2287.9504215,0.000148,2]
[392932664,1762155041360,-329.49819988,0.00014811,2]
[392932665,1762155041372,-329.49819988,0.00014826,2]
[392932666,1762155041384,-2287.9504215,0.00014833,2]
[392932667,1762155041395,-329.49819988,0.00014841,2]
[392932668,1762155041406,-329.49819988,0.00014855,2]
[392932669,1762155041418,-2287.9504215,0.00014867,2]
[392932670,1762155041429,-264.0,0.00014877,2]
[392932671,1762155041440,-200.0,0.0001488,2]
[392932672,1762155041450,-249.29500692,0.00014886,2]
[392932673,1762155041464,-477.72403831,0.00014886,2]
[392932674,1762155041474,-847.58372752,0.00014886,2]
[392932675,1762155041483,-1868.9133615,0.00014886,2]
[392932676,1762155041493,-301.56974275,0.00014886,2]
[392932677,1762155041506,-249.29500692,0.00014888,2]
[392932678,1762155041516,-249.29500692,0.00014889,2]
[392932679,1762155041527,-249.29500692,0.00014891,2]
[392932680,1762155041537,-249.29500692,0.00014892,2]
[392932681,1762155041547,-477.72403829,0.00014893,2]
[392932682,1762155041557,-249.29500692,0.00014894,2]
[392932683,1762155041567,-500.0,0.00014895,2]
[392932684,1762155041576,-249.29500692,0.00014895,2]
[392932685,1762155041588,-1595.0,0.00014896,2]
[392932686,1762155041599,-1271.0,0.00014896,2]
[392932687,1762155041611,-677.168,0.00014896,2]
[392932688,1762155041622,-5765.176,0.00014896,2]
[392932689,1762155041632,-249.29500692,0.00014897,2]
[392932690,1762155041641,-249.29500692,0.00014898,2]
[392932691,1762155041651,-162.09669166,0.00014899,2]
[392932692,1762155041661,-284.52928108,0.000149,2]
[392932693,1762155041670,-657.11566621,0.000149,2]
[392932694,1762155041680,-2287.9504215,0.000149,2]
[392932695,1762155041689,-5000.0,0.000149,2]
[392932696,1762155041699,-477.72403829,0.000149,2]
[392932697,1762155041709,-249.29500692,0.000149,2]
[392932698,1762155041720,-791.65712035,0.000149,2]
[392932699,1762155041731,-166.66,0.00014948,2]
[392932700,1762155041742,-504.6181,0.00014959,2]
[392932701,1762155041755,-312.09962322,0.0001497,2]
[392932702,1762155041765,-312.09962322,0.0001497,2]
[392932703,1762155041775,-500.0,0.00014973,2]
[392932704,1762155041784,-199.2262633,0.00014973,2]
[392932705,1762155041794,-160.4397201,0.00014973,2]
[392932706,1762155041804,-500.28973591,0.00014973,2]
[392932707,1762155041814,-500.14735904,0.00014973,2]
[392932708,1762155041824,-500.95705604,0.00014973,2]
[392932709,1762155041834,-500.0,0.00014973,2]
[392932710,1762155041844,-337.82055885,0.00014973,2]
[392932711,1762155041854,-500.0,0.00014973,2]
[392932712,1762155041864,-502.97445239,0.00014973,2]
[392932713,1762155041875,-500.0,0.00014973,2]
[392932714,1762155041886,-500.0,0.00014973,2]
[392932715,1762155041896,-500.0,0.00014973,2]
[392932716,1762155041906,-500.0,0.00014973,2]
[392932717,1762155041916,-162.3387926,0.00014973,2]
[392932718,1762155041927,-280.18631761,0.00014973,2]
[392932719,1762155041937,-500.27032305,0.00014973,2]
[392932720,1762155041947,-500.0,0.00014973,2]
[392932721,1762155041957,-167.27802889,0.00014973,2]
[392932722,1762155041967,-500.0,0.00014973,2]
[392932723,1762155041977,-500.0,0.00014973,2]
[392932724,1762155041987,-500.0,0.00014973,2]
[392932725,1762155041998,-501.38630198,0.00014973,2]
[392932726,1762155042007,-500.0,0.00014973,2]
[392932727,1762155042017,-500.85120301,0.00014973,2]
[392932728,1762155042027,-500.0,0.00014973,2]
[392932729,1762155042037,-500.0,0.00014973,2]
[392932730,1762155042046,-155.14402649,0.00014973,2]
[392932731,1762155042056,-632.5089604,0.00014973,2]
[392932732,1762155042066,-500.52001213,0.00014973,2]
[392932733,1762155042079,-501.46660778,0.00014973,2]
[392932734,1762155042089,-938.96,0.00014973,2]
[392932735,1762155042099,-666.0,0.00014979,2]
[392932736,1762155042109,-3839.0,0.0001498,2]
[392932737,1762155042119,-1662208.62434853,0.0001498,2]
[392932738,1762155042150,-10798.0,0.0001498,2]
[392932784,1762155061432,4920.84083957,0.00014245,2]
[392932785,1762155061463,10000.01,0.00014245,2]
[392932786,1762155061491,443.32916043,0.00014245,2]
[392932787,1762155099728,2751.0,0.00014003,2]
[392932791,1762155155061,189.72,0.00015,120]
[392932796,1762155175268,-246.0,0.00014435,2]
[392932798,1762155180323,-38.2851,0.00014435,2]
[392932895,1762155268644,1905.97,0.00013939,2]
[392933014,1762155332768,1852.42,0.00013916,2]
[392933321,1762155495781,6165.0498,0.00013914,2]
[392933322,1762155495815,3977.7502,0.00013914,2]
[392933382,1762155527042,8654.18,0.00013918,2]
[392933829,1762155736490,1345.83,0.00014349,2]
[392933830,1762155736522,3202.17,0.00014349,2]
[392933861,1762155749380,500.0,0.00013913,2]
[392933969,1762155796796,409.46,6.948e-05,2]
[392933970,1762155796984,409.46,7.314e-05,2]
[392933971,1762155797179,409.46,7.68e-05,2]
[392933972,1762155797386,409.46,8.045e-05,2]
[392933973,1762155797576,409.46,8.411e-05,2]
[392933974,1762155797791,409.46,8.777e-05,2]
[392933975,1762155797996,409.46,9.143e-05,2]
[392933976,1762155798206,409.46,9.508e-05,2]
[392933977,1762155798411,409.46,9.874e-05,2]
[392933978,1762155798609,409.46,0.0001024,2]
[392933979,1762155798814,409.46,0.00010605,2]
[392933981,1762155799023,409.46,0.00010971,2]
[392933985,1762155799454,409.46,0.00011337,2]
[392933986,1762155799495,409.46,0.00011702,2]
[392933987,1762155799647,409.46,0.00012068,2]
[392933989,1762155799890,409.46,0.00012434,2]
[392933990,1762155800116,390.50040537,0.000128,2]
[392933991,1762155800144,18.95959463,0.000128,2]
[392933992,1762155800327,409.46,0.00013165,2]
[392933993,1762155800581,524.43054161,0.00018,30]
[392933994,1762155800628,409.46,0.00013531,2]
[392933995,1762155800806,409.46,0.00013897,2]
[392934181,1762155881641,290.0,0.00018,120]
[392934270,1762155910696,150.0,0.00013463,2]
[392934271,1762155910764,150.0,0.00013463,2]
[392934272,1762155910837,150.0,0.00013463,2]
[392934298,1762155917344,150.0,0.00013463,2]
[392934299,1762155917417,150.0,0.00013463,2]
[392934301,1762155917638,255.56280565,0.00013463,2]
[392934302,1762155917679,150.0,0.00013463,2]
[392934309,1762155920835,153.70308771,0.00013463,2]
[392934320,1762155925172,283.17879875,0.00013463,2]
[392934321,1762155925244,155.62045552,0.00013463,2]
[392934339,1762155930340,150.00000001,0.00013463,2]
[392934342,1762155930701,150.0,0.00013463,2]
[392934343,1762155930744,150.0,0.00013463,2]
[392934359,1762155935506,364.0,0.00014337,2]
[392934993,1762156188085,4143.30525773,0.00013893,2]
[392934994,1762156188110,10000.01,0.00013893,2]
[392934995,1762156188136,8819.53474227,0.00013893,2]
[392935050,1762156209592,1180.47525773,0.00013871,2]
[392935051,1762156209617,3191.76474227,0.00013871,2]
[392935112,1762156232581,-167.06278946,0.00014554,2]
[392935113,1762156232591,-167.81904028,0.00014565,2]
[392935114,1762156232600,-99.30317026,0.00014577,2]
[392935115,1762156232641,-150.69682974,0.00014577,2]
[392935116,1762156232650,-200.0,0.00014599,2]
[392935117,1762156232659,-195.0,0.00014599,2]
[392935118,1762156232668,-300.0,0.00014599,2]
[392935119,1762156232676,-410.7928,0.000146,2]
[392935120,1762156232686,-4548.0,0.00014623,2]
[392935121,1762156232695,-1200.0,0.00014653,2]
[392935122,1762156232704,-364.0,0.00014654,2]